fUST/lending_fUST_20250408
["ID","MTS","AMOUNT","RATE_DAILY","PERIOD"]
[357508204,1744096045246,-265228.62580056,0.00019481,2]
[357508205,1744096046348,500.0,0.00044136,30]
[357508206,1744096046407,508.37189,0.00035186,30]
[357508207,1744096046752,600.0,0.00045285,30]
[357508208,1744096049307,150.286252,0.00048084,120]
[357508209,1744096050530,487.2,0.00035186,30]
[357508210,1744096103560,-553.96067,0.00035186,30]
[357508211,1744096103596,-5717.75,0.000384,30]
[357508212,1744096103622,-4987.72,0.000384,30]
[357508213,1744096103655,-4987.72,0.00042,30]
[357508214,1744096103682,-5717.75,0.000421,30]
[357508215,1744096103709,-900.31,0.000432,30]
[357508216,1744096103738,-4987.72,0.000458,30]
[357508217,1744096103766,-5717.75,0.000461,30]
[357508218,1744096103792,-900.31,0.000469,30]
[357508219,1744096103824,-150.55325932,0.00048084,120]
[357508220,1744096103850,-150.40948026,0.00048084,120]
[357508221,1744096103875,-500.0,0.00048084,120]
[357508222,1744096103900,-500.45263762,0.00048084,120]
[357508223,1744096103926,-500.0,0.00049315,120]
[357508224,1744096103952,-500.0,0.00049315,120]
[357508225,1744096103978,-4987.72,0.000495,30]
[357508226,1744096104006,-625.31640526,0.00049999,120]
[357508227,1744096104032,-500.0,0.00049999,120]
[357508228,1744096104059,-5717.75,0.000525,30]
[357508229,1744096104085,-156.6537003,0.00054358,30]
[357508230,1744096104112,-156.6537003,0.00054358,30]
[357508231,1744096104139,-900.31,0.000548,30]
[357508232,1744096104165,-150.1974173,0.000549,120]
[357508233,1744096104191,-545.72094009,0.00055,120]
[357508234,1744096104216,-705.29238708,0.00055,120]
[357508235,1744096104242,-98158.9175623,0.00055,120]
[357508236,1744096104269,-406.3603698,0.0005518,60]
[357508237,1744096104296,-1121.0,0.00056,120]
[357508238,1744096104322,-579.2347302,0.00056025,60]
[357508239,1744096104351,-350.8658892,0.00056025,60]
[357508240,1744096104378,-360.0653681,0.00056025,60]
[357508241,1744096104405,-360.0653681,0.00056025,60]
[357508242,1744096104433,-360.0653681,0.00056025,60]
[357508243,1744096104462,-156.6537003,0.00056309,60]
[357508244,1744096104493,-156.6537003,0.00056309,60]
[357508245,1744096104526,-156.6537003,0.00056309,60]
[357508246,1744096104554,-156.6537003,0.00056309,60]
[357508247,1744096104582,-150.0,0.00056591,120]
[357508248,1744096104608,-2747.55,0.00057,30]
[357508249,1744096104633,-453.79571,0.00057174,120]
[357508250,1744096104830,-4987.72,0.000572,30]
[357508251,1744096104855,-500.0,0.00057534,120]
[357508252,1744096104880,-2000.0,0.00057534,120]
[357508253,1744096104906,-1121.0,0.00058,120]
[357508254,1744096104932,-151.0,0.00058822,120]
[357508255,1744096104958,-400.0,0.00059,120]
[357508256,1744096104984,-5717.75,0.00059,30]
[357508257,1744096105011,-150.0,0.00059591,120]
[357508258,1744096105038,-275.31736421,0.0006,120]
[357508259,1744096105065,-1000.0,0.0006,120]
[357508260,1744096105095,-5000.0,0.0006,120]
[357508261,1744096105123,-160.0,0.0006,120]
[357508262,1744096105150,-224.78376043,0.0006,120]
[357508263,1744096105177,-1121.0,0.0006,120]
[357508264,1744096105203,-12000.0,0.0006,60]
[357508265,1744096105230,-900.31,0.0006,30]
[357508266,1744096105257,-500.0,0.00060273,120]
[357508267,1744096105283,-2000.0,0.00060274,120]
[357508268,1744096105311,-154663.26,0.00061,30]
[357508269,1744096105351,-1121.0,0.00062,120]
[357508270,1744096105382,-12000.0,0.00062,60]
[357508271,1744096105413,-453.79571,0.00062495,120]
[357508272,1744096105443,-150.0,0.00062591,120]
[357508273,1744096105474,-500.0,0.00063013,120]
[357508274,1744096105608,306.0,0.00056342,60]
[357508275,1744096108074,2574.21304793,0.00062698,60]
[357508276,1744096109997,530.0,0.0003519,30]
[357508277,1744096111535,151.0,0.000418,120]
[357508278,1744096111835,239.067142,0.00055,120]
[357508279,1744096114248,508.0,0.0003519,30]
[357508280,1744096118650,487.351182,0.0003519,30]
[357508281,1744096147104,-158.5646888,0.00018618,2]
[357508282,1744096147126,-500.0,0.00019478,2]
[357508283,1744096147148,-760.4,0.00019478,2]
[357508284,1744096147170,-691.08,0.00019478,2]
[357508285,1744096147191,-911.97,0.00019478,2]
[357508286,1744096147212,-500.0,0.00019478,2]
[357508287,1744096147233,-500.0,0.00019479,2]
[357508288,1744096147252,-500.0,0.00019479,2]
[357508289,1744096147273,-500.0,0.00019479,2]
[357508290,1744096147292,-500.0,0.00019479,2]
[357508291,1744096147312,-500.0,0.00019479,2]
[357508292,1744096147334,-500.0,0.00019479,2]
[357508293,1744096147354,-500.0,0.00019479,2]
[357508294,1744096147374,-500.0,0.00019479,2]
[357508295,1744096147394,-500.0,0.00019479,2]
[357508296,1744096147419,-503.20813129,0.00019479,2]
[357508297,1744096147440,-500.0,0.00019479,2]
[357508298,1744096147460,-500.0,0.00019479,2]
[357508299,1744096147481,-500.0,0.00019479,2]
[357508300,1744096147503,-500.0,0.00019479,2]
[357508301,1744096147523,-500.0,0.00019479,2]
[357508302,1744096147544,-500.0,0.00019479,2]
[357508303,1744096147565,-505.58,0.00019479,2]
[357508304,1744096147588,-500.0,0.00019479,2]
[357508305,1744096147607,-512.42975922,0.00019479,2]
[357508306,1744096147629,-500.0,0.00019479,2]
[357508307,1744096147649,-500.0,0.00019479,2]
[357508308,1744096147670,-500.0,0.00019479,2]
[357508309,1744096147689,-500.0,0.00019479,2]
[357508310,1744096147709,-500.0,0.00019479,2]
[357508311,1744096147730,-500.0,0.00019479,2]
[357508312,1744096147751,-542.36,0.00019479,2]
[357508313,1744096147771,-500.0,0.00019479,2]
[357508314,1744096147792,-500.0,0.00019479,2]
[357508315,1744096147813,-500.0,0.00019479,2]
[357508316,1744096147833,-500.0,0.00019479,2]
[357508317,1744096147853,-500.0,0.00019479,2]
[357508318,1744096147873,-500.0,0.00019479,2]
[357508319,1744096147894,-500.0,0.00019479,2]
[357508320,1744096147915,-500.0,0.00019479,2]
[357508321,1744096147936,-500.0,0.00019479,2]
[357508322,1744096147956,-500.0,0.00019479,2]
[357508323,1744096147976,-500.0,0.00019479,2]
[357508324,1744096147997,-500.0,0.00019479,2]
[357508325,1744096148018,-871.23,0.00019479,2]
[357508326,1744096148039,-500.0,0.00019479,2]
[357508327,1744096148059,-500.0,0.00019479,2]
[357508328,1744096148079,-500.0,0.00019479,2]
[357508329,1744096148100,-510.64561552,0.00019479,2]
[357508330,1744096148121,-500.0,0.00019479,2]
[357508331,1744096148142,-500.0,0.00019479,2]
[357508332,1744096148162,-500.0,0.00019479,2]
[357508333,1744096148183,-500.0,0.00019479,2]
[357508334,1744096148203,-500.0,0.00019479,2]
[357508335,1744096148225,-500.0,0.00019479,2]
[357508336,1744096148246,-500.0,0.00019479,2]
[357508337,1744096148266,-500.0,0.00019479,2]
[357508338,1744096148287,-500.0,0.00019479,2]
[357508339,1744096148310,-574.78,0.00019479,2]
[357508340,1744096148332,-500.0,0.00019479,2]
[357508341,1744096148355,-500.0,0.00019479,2]
[357508342,1744096148377,-500.0,0.00019479,2]
[357508343,1744096148397,-34.36727894,0.00019479,2]
[357508344,1744096165101,-500.0,0.00019478,2]
[357508345,1744096165125,-518.54,0.00019478,2]
[357508346,1744096165146,-469.72948087,0.00019479,2]
[357508347,1744096165168,-500.0,0.00019479,2]
[357508348,1744096165188,-500.0,0.00019479,2]
[357508349,1744096165210,-500.0,0.00019479,2]
[357508350,1744096165231,-500.0,0.00019479,2]
[357508351,1744096165252,-500.0,0.00019479,2]
[357508352,1744096165273,-500.0,0.00019479,2]
[357508353,1744096165294,-500.0,0.00019479,2]
[357508354,1744096165315,-354.47956783,0.00019479,2]
[357508355,1744096165336,-500.0,0.00019479,2]
[357508356,1744096165357,-500.0,0.00019479,2]
[357508357,1744096165378,-5430.84,0.00019479,2]
[357508358,1744096165400,-500.0,0.00019479,2]
[357508359,1744096165422,-500.0,0.00019479,2]
[357508360,1744096165443,-500.0,0.00019479,2]
[357508361,1744096165464,-500.0,0.00019479,2]
[357508362,1744096165486,-500.0,0.00019479,2]
[357508363,1744096165510,-500.0,0.00019479,2]
[357508364,1744096165531,-500.0,0.00019479,2]
[357508365,1744096165559,-500.0,0.00019479,2]
[357508366,1744096165582,-500.0,0.00019479,2]
[357508367,1744096165603,-500.0,0.00019479,2]
[357508368,1744096165625,-500.0,0.00019479,2]
[357508369,1744096165646,-500.0,0.00019479,2]
[357508370,1744096165669,-503.71254829,0.00019479,2]
[357508371,1744096165691,-166.49023478,0.00019479,2]
[357508372,1744096165712,-500.0,0.00019479,2]
[357508373,1744096165734,-500.0,0.00019479,2]
[357508374,1744096165757,-500.0,0.00019479,2]
[357508375,1744096165779,-500.0,0.00019479,2]
[357508376,1744096165801,-1158.68,0.00019479,2]
[357508377,1744096165823,-500.0,0.00019479,2]
[357508378,1744096165844,-500.0,0.00019479,2]
[357508379,1744096165866,-500.0,0.0001948,2]
[357508380,1744096165887,-864.85,0.0001948,2]
[357508381,1744096165909,-2875.12,0.0001948,2]
[357508382,1744096165932,-1322.83,0.0001948,2]
[357508383,1744096165954,-500.0,0.0001948,2]
[357508384,1744096165976,-32474.29968038,0.00019481,2]
[357508394,1744096231880,-2061.40879756,0.00019473,2]
[357508395,1744096231891,-500.0,0.00019478,2]
[357508396,1744096231901,-500.0,0.00019478,2]
[357508397,1744096231911,-948.06,0.00019478,2]
[357508398,1744096231919,-500.0,0.00019478,2]
[357508399,1744096231929,-500.0,0.00019478,2]
[357508400,1744096231938,-500.0,0.00019478,2]
[357508401,1744096231947,-500.0,0.00019478,2]
[357508402,1744096231957,-500.0,0.00019478,2]
[357508403,1744096231966,-500.0,0.00019479,2]
[357508404,1744096231975,-566.0,0.00019479,2]
[357508405,1744096231985,-500.0,0.00019479,2]
[357508406,1744096231995,-500.0,0.00019479,2]
[357508407,1744096232005,-500.0,0.00019479,2]
[357508408,1744096232016,-500.0,0.00019479,2]
[357508409,1744096232026,-500.0,0.00019479,2]
[357508410,1744096232036,-507.5738743,0.00019479,2]
[357508411,1744096232046,-505.73658718,0.00019479,2]
[357508412,1744096232056,-500.0,0.00019479,2]
[357508413,1744096232066,-600.12,0.00019479,2]
[357508414,1744096232076,-438.30232493,0.00019479,2]
[357508415,1744096232085,-500.0,0.00019479,2]
[357508416,1744096232095,-500.0,0.00019479,2]
[357508417,1744096232105,-500.0,0.00019479,2]
[357508418,1744096232115,-500.0,0.00019479,2]
[357508419,1744096232125,-508.42641643,0.00019479,2]
[357508421,1744096232135,-500.0,0.00019479,2]
[357508423,1744096232144,-500.0,0.00019479,2]
[357508424,1744096232154,-500.0,0.00019479,2]
[357508425,1744096232163,-500.0,0.00019479,2]
[357508426,1744096232172,-500.0,0.00019479,2]
[357508427,1744096232182,-511.51490201,0.00019479,2]
[357508428,1744096232191,-500.0,0.00019479,2]
[357508429,1744096232201,-500.0,0.00019479,2]
[357508430,1744096232210,-519.31313913,0.00019479,2]
[357508431,1744096232219,-500.0,0.00019479,2]
[357508433,1744096232228,-500.0,0.00019479,2]
[357508435,1744096232238,-500.0,0.00019479,2]
[357508437,1744096232248,-500.0,0.00019479,2]
[357508439,1744096232257,-500.0,0.00019479,2]
[357508441,1744096232266,-500.0,0.00019479,2]
[357508443,1744096232276,-500.0,0.00019479,2]
[357508445,1744096232285,-500.0,0.00019479,2]
[357508447,1744096232295,-500.0,0.00019479,2]
[357508449,1744096232305,-500.0,0.00019479,2]
[357508451,1744096232314,-500.0,0.00019479,2]
[357508453,1744096232323,-508.19143187,0.0001948,2]
[357508455,1744096232332,-2696.02,0.0001948,2]
[357508457,1744096232341,-652.71,0.0001948,2]
[357508459,1744096232351,-500.0,0.0001948,2]
[357508461,1744096232360,-72297.07451906,0.00019481,2]
[357508462,1744096232369,-500.0,0.00019573,2]
[357508463,1744096232378,-500.0,0.00019573,2]
[357508464,1744096232388,-501.15278312,0.00019573,2]
[357508465,1744096232398,-500.0,0.00019579,2]
[357508466,1744096232407,-500.0,0.00019579,2]
[357508467,1744096232416,-500.0,0.00019579,2]
[357508468,1744096232426,-500.0,0.00019579,2]
[357508469,1744096232435,-500.0,0.00019579,2]
[357508470,1744096232445,-500.0,0.00019579,2]
[357508471,1744096232454,-500.0,0.00019579,2]
[357508472,1744096232463,-500.0,0.00019579,2]
[357508473,1744096232473,-524.11855904,0.00019579,2]
[357508474,1744096232482,-500.0,0.00019579,2]
[357508475,1744096232491,-500.0,0.00019579,2]
[357508476,1744096232501,-500.0,0.00019579,2]
[357508477,1744096232512,-500.0,0.00019579,2]
[357508478,1744096232525,-500.0,0.00019579,2]
[357508479,1744096232534,-500.0,0.00019579,2]
[357508480,1744096232543,-500.0,0.00019579,2]
[357508481,1744096232556,-500.0,0.00019579,2]
[357508482,1744096232567,-500.0,0.00019579,2]
[357508483,1744096232576,-500.0,0.00019579,2]
[357508484,1744096232586,-500.0,0.00019579,2]
[357508485,1744096232604,-525.56723237,0.00019579,2]
[357508486,1744096232614,-500.0,0.00019579,2]
[357508487,1744096232624,-514.86955691,0.00019579,2]
[357508488,1744096232633,-500.0,0.00019579,2]
[357508489,1744096232643,-155.04656337,0.00019579,2]
[357508490,1744096232653,-500.0,0.00019579,2]
[357508491,1744096232662,-500.0,0.00019579,2]
[357508492,1744096232671,-500.0,0.00019579,2]
[357508493,1744096232682,-500.0,0.00019579,2]
[357508494,1744096232691,-634.46438116,0.00019579,2]
[357508495,1744096232828,-500.0,0.00019579,2]
[357508496,1744096232839,-502.78030817,0.00019579,2]
[357508497,1744096232848,-500.0,0.00019579,2]
[357508498,1744096232858,-500.0,0.00019579,2]
[357508499,1744096232867,-500.0,0.00019579,2]
[357508500,1744096232877,-500.0,0.00019579,2]
[357508501,1744096232886,-500.0,0.00019579,2]
[357508502,1744096232896,-500.0,0.00019579,2]
[357508503,1744096232905,-500.0,0.00019579,2]
[357508504,1744096232915,-500.0,0.00019579,2]
[357508505,1744096232925,-500.0,0.00019579,2]
[357508506,1744096232935,-500.0,0.00019579,2]
[357508507,1744096232944,-500.0,0.00019579,2]
[357508508,1744096232954,-1000.0,0.00019579,2]
[357508509,1744096232963,-500.0,0.00019579,2]
[357508510,1744096232973,-500.0,0.00019579,2]
[357508511,1744096232983,-500.0,0.00019579,2]
[357508512,1744096232992,-500.0,0.00019579,2]
[357508513,1744096233001,-500.0,0.00019579,2]
[357508514,1744096233012,-500.0,0.00019579,2]
[357508515,1744096233021,-500.0,0.00019579,2]
[357508516,1744096233031,-500.0,0.00019579,2]
[357508517,1744096233041,-500.0,0.00019579,2]
[357508518,1744096233050,-500.0,0.00019579,2]
[357508519,1744096233060,-500.0,0.00019579,2]
[357508520,1744096233070,-500.0,0.00019579,2]
[357508521,1744096233080,-500.0,0.00019579,2]
[357508522,1744096233089,-500.0,0.00019579,2]
[357508523,1744096233099,-500.0,0.00019579,2]
[357508524,1744096233109,-500.0,0.00019579,2]
[357508525,1744096233119,-500.0,0.00019579,2]
[357508526,1744096233129,-500.0,0.00019579,2]
[357508527,1744096233138,-500.0,0.00019579,2]
[357508528,1744096233148,-504.76165128,0.00019579,2]
[357508529,1744096233158,-519.72217866,0.00019579,2]
[357508530,1744096233168,-505.38299299,0.00019579,2]
[357508531,1744096233178,-646.88938777,0.00019579,2]
[357508532,1744096233187,-500.0,0.00019579,2]
[357508533,1744096233197,-543.42449915,0.00019579,2]
[357508534,1744096233207,-620.74374552,0.00019579,2]
[357508535,1744096233217,-500.0,0.00019579,2]
[357508536,1744096233227,-500.0,0.00019579,2]
[357508537,1744096233236,-501.46112752,0.00019579,2]
[357508538,1744096233246,-501.78685774,0.00019579,2]
[357508539,1744096233256,-187.57083766,0.00019579,2]
[357508540,1744096233266,-500.0,0.00019579,2]
[357508541,1744096233275,-500.0,0.00019579,2]
[357508542,1744096233285,-500.0,0.00019579,2]
[357508543,1744096233295,-500.0,0.00019579,2]
[357508544,1744096233305,-500.0,0.00019579,2]
[357508545,1744096233314,-200.0,0.00019579,2]
[357508546,1744096233324,-556.76168594,0.00019579,2]
[357508547,1744096233334,-500.0,0.00019579,2]
[357508548,1744096233344,-500.0,0.00019579,2]
[357508549,1744096233354,-500.0,0.00019579,2]
[357508550,1744096233363,-500.0,0.00019579,2]
[357508551,1744096233373,-500.0,0.00019579,2]
[357508552,1744096233382,-1126.37,0.00019579,2]
[357508553,1744096233392,-501.01858331,0.00019579,2]
[357508554,1744096233402,-500.0,0.00019579,2]
[357508555,1744096233412,-500.0,0.00019579,2]
[357508556,1744096233421,-500.0,0.00019579,2]
[357508557,1744096233430,-500.0,0.00019579,2]
[357508558,1744096233440,-500.0,0.00019579,2]
[357508559,1744096233450,-500.0,0.00019579,2]
[357508560,1744096233459,-500.0,0.00019579,2]
[357508561,1744096233469,-500.0,0.00019579,2]
[357508562,1744096233478,-500.0,0.00019579,2]
[357508563,1744096233489,-500.0,0.00019579,2]
[357508564,1744096233498,-500.0,0.00019579,2]
[357508565,1744096233508,-500.0,0.00019579,2]
[357508566,1744096233523,-500.0,0.00019579,2]
[357508567,1744096233532,-500.0,0.00019579,2]
[357508568,1744096233542,-500.0,0.00019579,2]
[357508569,1744096233551,-500.0,0.00019579,2]
[357508570,1744096233561,-500.0,0.00019579,2]
[357508571,1744096233571,-500.0,0.00019579,2]
[357508572,1744096233580,-500.0,0.00019579,2]
[357508573,1744096233590,-500.0,0.00019579,2]
[357508574,1744096233600,-500.0,0.00019579,2]
[357508575,1744096233609,-501.8754535,0.00019579,2]
[357508576,1744096233619,-606.95456052,0.00019579,2]
[357508577,1744096233629,-500.0,0.00019579,2]
[357508578,1744096233639,-502.38512091,0.00019579,2]
[357508579,1744096233648,-507.56010992,0.00019579,2]
[357508580,1744096233658,-500.0,0.00019579,2]
[357508581,1744096233668,-500.0,0.00019579,2]
[357508582,1744096233678,-500.0,0.00019579,2]
[357508583,1744096233688,-500.0,0.00019579,2]
[357508584,1744096233698,-500.0,0.00019579,2]
[357508585,1744096233709,-500.0,0.00019579,2]
[357508586,1744096233720,-500.0,0.00019579,2]
[357508587,1744096233731,-500.0,0.00019579,2]
[357508588,1744096233741,-537.91616719,0.00019579,2]
[357508589,1744096233751,-500.0,0.00019579,2]
[357508590,1744096233760,-500.0,0.00019579,2]
[357508591,1744096233770,-500.0,0.00019579,2]
[357508592,1744096233780,-500.0,0.00019579,2]
[357508593,1744096233796,-500.0,0.00019579,2]
[357508594,1744096233811,-500.0,0.00019579,2]
[357508595,1744096233822,-500.0,0.00019579,2]
[357508596,1744096233831,-557.45379724,0.00019579,2]
[357508597,1744096233842,-500.0,0.00019579,2]
[357508598,1744096233852,-503.26208032,0.00019579,2]
[357508599,1744096233863,-516.44390152,0.00019579,2]
[357508600,1744096233873,-500.0,0.00019579,2]
[357508601,1744096233883,-500.0,0.00019579,2]
[357508602,1744096233893,-500.0,0.00019579,2]
[357508603,1744096233903,-500.0,0.00019579,2]
[357508604,1744096233913,-500.0,0.00019579,2]
[357508605,1744096233923,-500.0,0.00019579,2]
[357508606,1744096233933,-500.0,0.00019579,2]
[357508607,1744096233943,-549.0238092,0.00019579,2]
[357508608,1744096233953,-503.90718411,0.00019579,2]
[357508609,1744096233963,-500.0,0.00019579,2]
[357508610,1744096233973,-500.0,0.00019579,2]
[357508611,1744096233983,-500.0,0.00019579,2]
[357508612,1744096233993,-500.0,0.00019579,2]
[357508613,1744096234003,-500.0,0.00019579,2]
[357508614,1744096234013,-500.0,0.00019579,2]
[357508615,1744096234022,-500.0,0.00019579,2]
[357508616,1744096234032,-500.0,0.00019579,2]
[357508617,1744096234042,-590.99883096,0.00019579,2]
[357508618,1744096234052,-500.0,0.00019579,2]
[357508619,1744096234062,-500.0,0.00019579,2]
[357508620,1744096234072,-500.0,0.00019579,2]
[357508621,1744096234081,-500.0,0.00019579,2]
[357508622,1744096234091,-500.0,0.00019579,2]
[357508623,1744096234101,-633.36995398,0.00019579,2]
[357508624,1744096234118,-418.88309529,0.00019579,2]
[357508625,1744096234134,-500.0,0.00019579,2]
[357508626,1744096234151,-500.0,0.00019579,2]
[357508627,1744096234167,-500.0,0.00019579,2]
[357508628,1744096234180,-500.0,0.00019579,2]
[357508629,1744096234192,-500.0,0.00019579,2]
[357508630,1744096234206,-590.74842303,0.00019579,2]
[357508631,1744096234220,-405.56256886,0.00019579,2]
[357508632,1744096234232,-500.0,0.00019579,2]
[357508633,1744096234246,-500.0,0.00019579,2]
[357508634,1744096234259,-500.0,0.00019579,2]
[357508635,1744096234273,-500.0,0.00019579,2]
[357508636,1744096234287,-500.0,0.00019579,2]
[357508637,1744096234300,-500.0,0.00019579,2]
[357508638,1744096234314,-500.0,0.00019579,2]
[357508639,1744096234327,-503.46033772,0.00019579,2]
[357508640,1744096234340,-500.0,0.00019579,2]
[357508641,1744096234354,-500.0,0.00019579,2]
[357508642,1744096234366,-500.0,0.00019579,2]
[357508643,1744096234380,-517.43,0.00019579,2]
[357508644,1744096234394,-500.0,0.00019579,2]
[357508645,1744096234407,-504.53450767,0.00019579,2]
[357508646,1744096234419,-500.0,0.00019579,2]
[357508647,1744096234430,-500.0,0.00019579,2]
[357508648,1744096234441,-500.0,0.00019579,2]
[357508649,1744096234452,-500.0,0.00019579,2]
[357508650,1744096234464,-500.0,0.00019579,2]
[357508651,1744096234476,-500.0,0.00019579,2]
[357508652,1744096234489,-500.0,0.00019579,2]
[357508653,1744096234501,-500.0,0.00019579,2]
[357508654,1744096234516,-500.0,0.00019579,2]
[357508655,1744096234530,-500.0,0.00019579,2]
[357508656,1744096234544,-500.0,0.00019579,2]
[357508657,1744096234558,-500.0,0.00019579,2]
[357508658,1744096234571,-500.0,0.00019579,2]
[357508659,1744096234585,-242.3323691,0.0001958,2]
[357508660,1744096234596,-501.19095066,0.0001958,2]
[357508661,1744096234606,-502.64381988,0.0001958,2]
[357508662,1744096234616,-500.0,0.0001958,2]
[357508663,1744096234627,-500.0,0.0001958,2]
[357508664,1744096234639,-500.0,0.0001958,2]
[357508665,1744096234652,-502.40297478,0.0001958,2]
[357508666,1744096234665,-500.91334526,0.0001958,2]
[357508667,1744096234678,-502.167856,0.0001958,2]
[357508668,1744096234689,-501.01078543,0.0001958,2]
[357508669,1744096234700,-502.22858061,0.0001958,2]
[357508670,1744096234712,-500.0,0.0001958,2]
[357508671,1744096234724,-502.17930579,0.0001958,2]
[357508672,1744096234737,-502.04865348,0.0001958,2]
[357508673,1744096234748,-502.38053083,0.0001958,2]
[357508674,1744096234759,-500.0,0.0001958,2]
[357508675,1744096234770,-500.0,0.0001958,2]
[357508676,1744096234785,-500.0,0.0001958,2]
[357508677,1744096234796,-500.0,0.0001958,2]
[357508678,1744096234807,-500.0,0.0001958,2]
[357508679,1744096234825,-500.0,0.0001958,2]
[357508680,1744096234838,-500.0,0.0001958,2]
[357508681,1744096234850,-639.32,0.0001958,2]
[357508682,1744096234862,-500.0,0.0001958,2]
[357508683,1744096234875,-500.0,0.0001958,2]
[357508684,1744096234888,-500.0,0.0001958,2]
[357508685,1744096234901,-519.12,0.0001958,2]
[357508686,1744096234917,-500.0,0.0001958,2]
[357508687,1744096234930,-500.0,0.0001958,2]
[357508688,1744096234942,-500.0,0.0001958,2]
[357508689,1744096234954,-500.0,0.0001958,2]
[357508690,1744096234966,-500.0,0.0001958,2]
[357508691,1744096234979,-500.0,0.0001958,2]
[357508692,1744096234990,-500.0,0.0001958,2]
[357508693,1744096235002,-500.0,0.0001958,2]
[357508694,1744096235014,-500.0,0.0001958,2]
[357508695,1744096235026,-500.0,0.0001958,2]
[357508696,1744096235037,-500.0,0.0001958,2]
[357508697,1744096235049,-500.0,0.0001958,2]
[357508698,1744096235060,-500.0,0.0001958,2]
[357508699,1744096235071,-574.23,0.0001958,2]
[357508700,1744096235083,-500.0,0.0001958,2]
[357508701,1744096235094,-500.0,0.0001958,2]
[357508702,1744096235106,-500.0,0.0001958,2]
[357508703,1744096235117,-500.0,0.0001958,2]
[357508704,1744096235128,-500.0,0.0001958,2]
[357508705,1744096235140,-500.0,0.0001958,2]
[357508706,1744096235151,-500.0,0.0001958,2]
[357508707,1744096235162,-500.0,0.0001958,2]
[357508708,1744096235173,-500.0,0.0001958,2]
[357508709,1744096235185,-500.0,0.0001958,2]
[357508710,1744096235196,-500.0,0.0001958,2]
[357508711,1744096235207,-500.0,0.0001958,2]
[357508712,1744096235218,-536.7935078,0.0001958,2]
[357508713,1744096235230,-511.53876932,0.0001958,2]
[357508714,1744096235241,-631.26,0.0001958,2]
[357508715,1744096235252,-500.0,0.0001958,2]
[357508716,1744096235263,-500.0,0.0001958,2]
[357508717,1744096235274,-500.0,0.0001958,2]
[357508718,1744096235286,-524.67,0.0001958,2]
[357508719,1744096235298,-500.0,0.0001958,2]
[357508720,1744096235309,-976.47,0.0001958,2]
[357508721,1744096235320,-562.2161191,0.0001958,2]
[357508722,1744096235332,-556.00315218,0.0001958,2]
[357508723,1744096235343,-510.43128438,0.0001958,2]
[357508724,1744096235354,-500.0,0.0001958,2]
[357508725,1744096235365,-500.0,0.0001958,2]
[357508726,1744096235378,-186.38443447,0.00019653,2]
[357508727,1744096235389,-500.0,0.0001968,2]
[357508728,1744096235398,-152.0,0.00019733,2]
[357508729,1744096235408,-500.0,0.00019752,2]